bitfinex-derivatives/quotes_SOLF0:USTF0_20250301
["timestamp","ask_amount","ask_price","bid_price","bid_amount"]
[1740791004260,12.68,146.01,145.91,5.4709]
[1740791004454,0.05096368,145.96,145.93,0.05274678]
[1740791004760,0.05096368,145.96,145.95,5.4834]
[1740791004959,0.05096368,145.96,145.95,18.1634]
[1740791005949,14.5914,146.05,145.97,5.4824]
[1740791006354,5.4807,146.02,145.97,5.4824]
[1740791007152,0.05173901,146.01,145.98,0.04872309]
[1740791008363,0.05173901,146.01,145.98,5.53092309]
[1740791009759,5.53283901,146.01,145.98,0.04872309]
[1740791010366,0.05173901,146.01,145.98,0.04872309]
[1740791010760,0.05173901,146.01,145.98,5.53082309]
[1740791011469,0.05173901,146.01,145.98,0.04872309]
[1740791012063,5.53313901,146.01,145.98,0.04872309]
[1740791012458,0.05173901,146.01,145.98,0.04872309]
[1740791012664,5.4816,146.0,145.98,0.04872309]
[1740791013171,5.53303901,146.01,145.98,0.04872309]
[1740791013570,0.05173901,146.01,145.99,5.4818]
[1740791014961,0.05173901,146.01,146.0,5.4815]
[1740791015362,0.05173901,146.01,145.98,0.04872309]
[1740791016673,5.53313901,146.01,145.98,0.04872309]
[1740791017272,5.53313901,146.01,145.98,5.53072309]
[1740791017465,0.05173901,146.01,145.98,0.04872309]
[1740791018273,5.4819,145.99,145.98,0.04872309]
[1740791019570,5.4831,145.96,145.91,5.4709]
[1740791019875,5.4831,145.96,145.93,5.4839]
[1740791020675,5.52947784,145.96,145.93,5.53675262]
[1740791021072,5.4835,145.95,145.93,0.05285262]
[1740791022069,5.4837,145.94,145.93,0.05285262]
[1740791024278,5.52947784,145.96,145.93,0.05285262]
[1740791024576,0.04637784,145.96,145.93,0.05285262]
[1740791024771,0.04637784,145.96,145.93,5.53685262]
[1740791024981,0.04637784,145.96,145.93,0.05285262]
[1740791025378,5.4837,145.94,145.93,0.05285262]
[1740791026175,0.04637784,145.96,145.93,0.05285262]
[1740791026176,5.4835,145.95,145.93,0.05285262]
[1740791026378,0.04637784,145.96,145.93,0.05285262]
[1740791026969,0.04637784,145.96,145.94,5.4835]
[1740791027873,0.04637784,145.96,145.93,0.05285262]
[1740791028186,0.04637784,145.96,145.93,5.53675262]
[1740791028387,5.52937784,145.96,145.93,5.53675262]
[1740791029681,5.4834,145.95,145.93,21.05719296]
[1740791029877,5.4834,145.95,145.93,5.53675262]
[1740791030485,5.4834,145.95,145.93,0.05285262]
[1740791030784,5.4834,145.95,145.93,15.57329296]
[1740791031178,5.4834,145.95,145.93,0.05285262]
[1740791031781,5.4837,145.94,145.93,0.05285262]
[1740791033485,5.4835,145.95,145.93,0.05285262]
[1740791033681,5.4835,145.95,145.93,15.77856173]
[1740791033882,0.04637784,145.96,145.93,15.77856173]
[1740791034095,5.52947784,145.96,145.94,15.72570911]
[1740791034388,5.52947784,145.96,145.93,5.53675262]
[1740791034584,5.52947784,145.96,145.94,15.72371521]
[1740791034785,0.04637784,145.96,145.95,15.72371521]
[1740791034987,0.04637784,145.96,145.94,5.4835]
[1740791036080,0.04637784,145.96,145.95,15.72428205]
[1740791036291,0.04637784,145.96,145.94,5.4835]
[1740791036686,5.52967784,145.96,145.93,5.53685262]
[1740791036887,5.52967784,145.96,145.94,15.72418184]
[1740791037096,5.52967784,145.96,145.93,5.53685262]
[1740791037288,5.52967784,145.96,145.94,15.72503917]
[1740791037592,5.52967784,145.96,145.93,5.53685262]
[1740791037890,5.52967784,145.96,145.94,15.72495148]
[1740791038086,5.52967784,145.96,145.93,0.05285262]
[1740791038293,5.52967784,145.96,145.94,15.7267725]
[1740791038481,5.4834,145.95,145.93,0.05285262]
[1740791038683,5.4834,145.95,145.94,15.72678317]
[1740791041796,0.04637784,145.96,145.94,21.21048317]
[1740791041997,0.04637784,145.96,145.95,15.72678317]
[1740791042786,5.52937784,145.96,145.95,15.72678317]
[1740791042988,5.52937784,145.96,145.94,15.72678317]
[1740791043184,5.52937784,145.96,145.93,0.05285262]
[1740791043384,5.52937784,145.96,145.94,15.7386438]
[1740791043684,5.52937784,145.96,145.93,0.05285262]
[1740791043888,5.52937784,145.96,145.94,15.73785705]
[1740791044186,0.04637784,145.96,145.95,15.73911008]
[1740791045099,0.04637784,145.96,145.95,21.22251008]
[1740791046702,9.0804,146.02,145.95,15.73911008]
[1740791047000,9.0804,146.02,145.98,5.4821]
[1740791047196,5.4809,146.02,145.99,15.73911008]
[1740791047399,5.4805,146.03,146.0,15.73911008]
[1740791047699,5.4805,146.03,146.01,15.73911008]
[1740791047903,5.52590841,146.03,146.0,0.0486604]
[1740791048102,5.52590841,146.03,146.01,15.73050403]
[1740791048302,5.52590841,146.03,146.0,0.0486604]
[1740791048496,5.52590841,146.03,146.01,15.72773801]
[1740791048698,5.52590841,146.03,146.0,0.0486604]
[1740791048901,5.52590841,146.03,146.01,15.72751507]
[1740791049101,5.52590841,146.03,146.0,0.0486604]
[1740791049399,5.52590841,146.03,146.01,15.72659103]
[1740791049703,5.52590841,146.03,146.0,0.0486604]
[1740791049904,5.52590841,146.03,146.01,15.72560187]
[1740791050106,5.4808,146.02,146.0,0.0486604]
[1740791050307,5.4808,146.02,146.01,15.72478467]
[1740791050698,5.4808,146.02,146.0,0.0486604]
[1740791051403,5.4808,146.02,146.01,15.72381114]
[1740791051706,5.4808,146.02,146.0,0.0486604]
[1740791051906,5.4808,146.02,146.01,15.72269522]
[1740791052101,5.52600841,146.03,146.01,15.72269522]
[1740791052307,0.04540841,146.03,146.0,0.0486604]
[1740791052496,0.04540841,146.03,146.01,15.72128913]
[1740791052698,0.04540841,146.03,146.0,0.0486604]
[1740791052898,5.4807,146.02,146.01,15.72092679]
[1740791053698,0.04540841,146.03,146.01,15.72092679]
[1740791053897,0.04540841,146.03,146.0,5.5300604]
[1740791054098,0.04540841,146.03,146.01,15.71996344]
[1740791054399,0.04540841,146.03,146.0,0.0486604]
[1740791054902,12.64,146.02,145.94,15.72321543]
[1740791055103,3.6956,146.01,145.95,15.72321543]
[1740791055320,3.6956,146.01,145.96,15.72321543]
[1740791055509,5.4816,146.0,145.97,15.72321543]
[1740791055810,5.4816,146.0,145.98,15.72464321]
[1740791055997,0.05106151,146.0,145.98,5.4822]
[1740791056199,0.05106151,146.0,145.97,0.05031417]
[1740791056399,0.05106151,146.0,145.98,15.72477619]
[1740791056695,0.05106151,146.0,145.97,0.05031417]
[1740791056905,0.05106151,146.0,145.98,15.72583034]
[1740791057211,0.05106151,146.0,145.99,15.72469192]
[1740791057394,0.05106151,146.0,145.99,21.20659192]
[1740791059906,75.54364227,146.14,145.99,19.14469192]
[1740791060207,74.96264729,146.14,146.0,17.09455493]
[1740791060413,74.96264729,146.14,146.11,5.477]
[1740791060710,74.96264729,146.14,146.09,12.66]
[1740791060912,74.96264729,146.14,146.1,15.71251562]
[1740791061206,0.04991361,146.13,146.11,21.18981562]
[1740791061517,0.04991361,146.13,146.1,0.04966298]
[1740791061518,0.04991361,146.13,146.1,15.7621786]
[1740791061720,0.04991361,146.13,146.1,0.04966298]
[1740791061913,0.04991361,146.13,146.1,15.7621786]
[1740791062110,0.04991361,146.13,146.1,0.04966298]
[1740791065918,0.04991361,146.13,146.1,5.52726298]
[1740791066314,0.04991361,146.13,146.1,0.04966298]
[1740791066518,1.8219,146.2,146.1,0.04966298]
[1740791066817,5.4735,146.22,146.14,5.476]
[1740791067212,5.4735,146.22,146.14,18.176]
[1740791067417,3.6178,146.23,146.14,18.176]
[1740791067713,5.4737,146.21,146.14,18.176]
[1740791067910,5.4737,146.21,146.17,0.0524762]
[1740791067911,0.05189957,146.2,146.17,0.0524762]
[1740791068103,5.52609957,146.2,146.17,0.0524762]
[1740791068504,0.05189957,146.2,146.17,0.0524762]
[1740791069116,5.4747,146.18,146.17,0.0524762]
[1740791070305,5.4753,146.17,146.1,18.1776]
[1740791071222,5.4761,146.15,146.08,5.4784]
[1740791071414,0.04399011,146.15,146.12,0.04406779]
[1740791072419,5.52009011,146.15,146.12,0.04406779]
[1740791073326,5.4763,146.14,146.12,0.04406779]
[1740791074715,5.4766,146.13,146.12,0.04406779]
[1740791077724,0.04399011,146.15,146.12,0.04406779]
[1740791077918,5.4763,146.14,146.12,0.04406779]
[1740791078114,0.04399011,146.15,146.12,0.04406779]
[1740791079218,0.04399011,146.15,146.12,5.52096779]
[1740791084430,0.04399011,146.15,146.13,5.4765]
[1740791088536,0.04399011,146.15,146.14,5.4762]
[1740791088736,0.04399011,146.15,146.12,0.04406779]
[1740791089729,5.52009011,146.15,146.12,5.52086779]
[1740791090738,5.52009011,146.15,146.13,5.4766]
[1740791090937,0.04399011,146.15,146.13,5.4766]
[1740791091133,0.04399011,146.15,146.12,0.04406779]
[1740791091329,0.04399011,146.15,146.13,5.4766]
[1740791091739,0.04399011,146.15,146.12,0.04406779]
[1740791091937,0.04399011,146.15,146.13,5.4766]
[1740791092133,0.04399011,146.15,146.12,0.04406779]
[1740791092837,0.04399011,146.15,146.14,5.4762]
[1740791093041,0.04399011,146.15,146.12,0.04406779]
[1740791093641,0.04399011,146.15,146.13,5.4764]
[1740791094340,5.51989011,146.15,146.13,5.4764]
[1740791094940,0.04399011,146.15,146.13,5.4764]
[1740791097542,0.04399011,146.15,146.14,5.4762]
[1740791097937,12.7,146.22,146.12,19.27298341]
[1740791098137,5.4741,146.2,146.17,5.4749]
[1740791098441,76.85624729,146.24,146.13,17.55971562]
[1740791098647,74.96264729,146.24,146.14,15.71251562]
[1740791098848,74.96264729,146.24,146.15,15.71251562]
[1740791099040,74.96264729,146.24,146.18,0.04390738]
[1740791099239,69.22004729,146.24,146.23,5.4729]
[1740791099545,66.34964729,146.24,146.23,18.0529]
[1740791099936,57.73814729,146.24,146.23,18.0529]
[1740791100445,5.49186937,146.24,146.23,18.0529]
[1740791100645,4.51346937,146.24,146.23,33.76541562]
[1740791101342,3.58026937,146.24,146.23,33.76541562]
[1740791101548,3.58026937,146.24,146.23,37.18541562]
[1740791101750,0.05177531,146.25,146.23,37.18541562]
[1740791102045,0.05177531,146.25,146.24,21.18501562]
[1740791105552,0.05177531,146.25,146.23,28.29251562]
[1740791106645,0.05177531,146.25,146.24,5.4725]
[1740791107349,0.05177531,146.25,146.23,12.58]
[1740791107548,0.05177531,146.25,146.22,15.75895656]
[1740791107751,0.05177531,146.25,146.22,0.04644094]
[1740791107951,5.52407531,146.25,146.22,0.04644094]
[1740791108339,0.05177531,146.25,146.22,0.04644094]
[1740791108752,0.05177531,146.25,146.22,5.51944094]
[1740791108955,0.05177531,146.25,146.22,0.04644094]
[1740791109856,5.52397531,146.25,146.22,0.04644094]
[1740791110043,0.05177531,146.25,146.22,0.04644094]
[1740791110552,0.05177531,146.25,146.23,5.4729]
[1740791110749,0.05177531,146.25,146.22,0.04644094]
[1740791112458,0.05177531,146.25,146.23,5.4726]
[1740791116460,5.52417531,146.25,146.22,0.04644094]
[1740791118855,5.4727,146.24,146.22,0.04644094]
[1740791119161,0.05177531,146.25,146.22,0.04644094]
[1740791119362,1.8423,146.24,146.22,0.04644094]
[1740791119960,5.4729,146.23,146.22,0.04644094]
[1740791121761,1.8423,146.24,146.16,12.46]
[1740791122362,5.4742,146.2,146.17,5.4751]
[1740791122663,1.8423,146.24,146.16,12.46]
[1740791122961,5.4747,146.19,146.17,0.05134038]
[1740791123959,5.5175227,146.2,146.17,0.05134038]
[1740791124164,0.0435227,146.2,146.17,0.05134038]
[1740791126061,0.0435227,146.2,146.17,5.52644038]
[1740791126767,0.0435227,146.2,146.17,0.05134038]
[1740791127067,0.0435227,146.2,146.17,15.763856]
[1740791127258,0.0435227,146.2,146.17,0.05134038]
[1740791127458,0.0435227,146.2,146.19,5.4744]
[1740791129672,0.0435227,146.2,146.19,17.9144]
[1740791130870,0.0435227,146.2,146.19,33.62691562]
[1740791131175,0.0435227,146.2,146.19,17.9144]
[1740791131362,0.0435227,146.2,146.19,33.62691562]
[1740791131558,0.0435227,146.2,146.19,17.9144]
[1740791131760,0.0435227,146.2,146.19,33.62691562]
[1740791131958,0.0435227,146.2,146.19,17.9144]
[1740791132164,0.0435227,146.2,146.19,33.62691562]
[1740791132775,0.0435227,146.2,146.19,17.9144]
[1740791132976,0.0435227,146.2,146.19,33.62691562]
[1740791134475,2.27e-05,146.2,146.19,33.62691562]
[1740791134673,3.7935,146.27,146.26,5.4717]
[1740791135871,1.88767991,146.28,146.25,0.04416853]
[1740791136176,1.88767991,146.28,146.2,15.71251562]
[1740791136177,1.8396,146.28,146.2,15.71251562]
[1740791136377,1.8396,146.28,146.21,15.71251562]
[1740791136570,1.8396,146.28,146.19,15.71251562]
[1740791136768,1.8396,146.28,146.2,15.71251562]
[1740791136968,1.8396,146.28,146.18,12.44]
[1740791137277,0.04542698,146.25,146.19,15.71251562]
[1740791137477,0.04542698,146.25,146.22,0.04850121]
[1740791137783,0.04542698,146.25,146.19,15.71251562]
[1740791138074,5.4731,146.23,146.2,21.18631562]
[1740791138280,1.8863,146.24,146.19,15.71251562]
[1740791138575,1.9026,146.22,146.2,15.71251562]
[1740791138768,7.3761,146.22,146.19,21.18681562]
[1740791138970,7.42246191,146.22,146.2,15.7646651]
[1740791139277,7.42246191,146.22,146.2,0.05214948]
[1740791139475,1.94896191,146.22,146.2,5.52594948]
[1740791139778,1.94896191,146.22,146.2,0.05214948]
[1740791139969,1.94896191,146.22,146.21,21.15804549]
[1740791141479,0.04636191,146.22,146.21,21.15804549]
[1740791142077,6.191e-05,146.22,146.21,21.15804549]
[1740791142967,6.191e-05,146.22,146.21,37.02082151]
[1740791144679,6.191e-05,146.22,146.21,21.15804549]
[1740791146082,1.7701,146.28,146.25,5.4718]
[1740791146376,1.7701,146.28,146.26,15.68444549]
[1740791146578,1.7701,146.28,146.27,15.68444549]
[1740791148582,1.7701,146.28,146.27,21.15584549]
[1740791150179,1.7701,146.28,146.27,15.68444549]
[1740791151283,1.7701,146.28,146.27,21.15584549]
[1740791151877,0.05265923,146.29,146.28,5.471]
[1740791152085,0.05265923,146.29,146.28,21.15544549]
[1740791152481,5.923e-05,146.29,146.28,21.15544549]
[1740791153991,5.923e-05,146.29,146.28,37.01822151]
[1740791154386,5.923e-05,146.29,146.28,21.15544549]
[1740791154785,5.923e-05,146.29,146.28,40.43822151]
[1740791155085,5.923e-05,146.29,146.28,24.57544549]
[1740791156092,5.4678,146.37,146.32,5.4692]
[1740791156291,5.4678,146.37,146.33,15.68444549]
[1740791156487,5.3525,146.4,146.32,12.44]
[1740791157083,5.4685,146.35,146.32,12.44]
[1740791157389,0.04743799,146.37,146.32,28.15948492]
[1740791157591,0.04743799,146.37,146.32,12.48360189]
[1740791158092,5.51513799,146.37,146.33,5.4689]
[1740791158285,0.04743799,146.37,146.33,15.67588303]
[1740791158486,0.04743799,146.37,146.35,5.4683]
[1740791161088,0.04743799,146.37,146.32,12.48360189]
[1740791161591,5.51533799,146.37,146.33,5.4691]
[1740791162691,0.04743799,146.37,146.33,5.4691]
[1740791162886,5.468,146.36,146.33,5.4691]
[1740791164391,0.04743799,146.37,146.32,12.48360189]
[1740791164596,0.04743799,146.37,146.32,0.04360189]
[1740791165094,5.4691,146.33,146.32,0.04360189]
[1740791166594,5.47,146.31,146.27,28.11588303]
[1740791166794,5.47,146.31,146.27,12.44]
[1740791167388,5.47,146.31,146.28,5.4708]
[1740791167796,5.51521486,146.31,146.28,5.51927121]
[1740791167993,0.04521486,146.31,146.28,0.04847121]
[1740791169501,5.4706,146.29,146.28,0.04847121]
[1740791169703,0.04521486,146.31,146.28,0.04847121]
[1740791170499,0.04521486,146.31,146.29,28.11588303]
[1740791170698,0.04521486,146.31,146.3,5.4702]
[1740791171090,0.04521486,146.31,146.3,21.14608303]
[1740791172298,1.486e-05,146.31,146.3,21.14608303]
[1740791172991,1.486e-05,146.31,146.3,5.4702]
[1740791173399,1.486e-05,146.31,146.3,21.10503625]
[1740791173900,1.8187,146.38,146.37,5.4676]
[1740791174592,1.8187,146.38,146.36,5.4679]
[1740791174895,1.86943667,146.38,146.36,5.51298873]
[1740791175100,1.86943667,146.38,146.36,0.04508873]
[1740791175296,1.86943667,146.38,146.37,5.4676]
[1740791175895,3.667e-05,146.38,146.37,5.4676]
[1740791176096,3.667e-05,146.38,146.37,21.10243625]
[1740791176399,3.667e-05,146.38,146.37,24.52243625]
[1740791177304,1.7459,146.51,146.49,5.4628]
[1740791177604,1.7459,146.51,146.46,12.44]
[1740791178401,0.04394017,146.5,146.49,5.4629]
[1740791179212,0.04394017,146.5,146.47,0.04711294]
[1740791181807,0.04394017,146.5,146.43,12.44]
[1740791182001,5.4982,146.53,146.43,12.44]
[1740791182500,10.9601,146.53,146.44,5.4647]
[1740791182915,0.04712753,146.5,146.47,0.04867638]
[1740791184610,0.04712753,146.5,146.47,5.51257638]
[1740791185306,0.04712753,146.5,146.48,5.4635]
[1740791185505,0.04712753,146.5,146.47,0.04867638]
[1740791187305,5.51012753,146.5,146.47,0.04867638]
[1740791187511,0.04712753,146.5,146.43,17.9051]
[1740791187815,0.04712753,146.5,146.43,12.44]
[1740791187816,5.4634,146.49,146.43,12.44]
[1740791188110,0.04712753,146.5,146.39,12.42]
[1740791188311,12.42,146.51,146.39,12.42]
[1740791188312,5.4647,146.45,146.39,12.42]
[1740791188516,190.0,146.5,146.39,12.42]
[1740791188806,12.42,146.51,146.41,0.0503221]
[1740791189012,5.4656,146.43,146.38,5.467]
[1740791189717,5.4656,146.43,146.37,5.4676]
[1740791190015,5.4656,146.43,146.35,231.16]
[1740791190215,0.05090115,146.41,146.39,0.0448981]
[1740791192211,5.51710115,146.41,146.39,0.0448981]
[1740791194014,0.05090115,146.41,146.35,231.16]
[1740791194222,1.8522,146.4,146.35,231.16]
[1740791194414,1.8522,146.4,146.35,12.42]
[1740791194723,1.8522,146.4,146.31,12.42]
[1740791195413,0.04547188,146.37,146.34,0.04839831]
[1740791196015,0.04547188,146.37,146.25,16.61752371]
[1740791196221,0.04547188,146.37,146.26,28.05483625]
[1740791196522,1.8522,146.4,146.25,16.61752371]
[1740791196714,1.8522,146.4,146.26,12.42]
[1740791197114,1.8522,146.4,146.25,16.61752371]
[1740791197315,0.04938214,146.34,146.32,0.04460654]
[1740791197520,12.42,146.36,146.25,13.40268746]
[1740791197723,1.8861,146.35,146.25,13.40268746]
[1740791198224,1.8861,146.35,146.25,0.98268746]
[1740791198615,0.04514354,146.31,146.29,0.05155944]
[1740791203717,0.04514354,146.31,146.3,5.4702]
[1740791207329,5.4919,146.38,146.3,19.05483625]
[1740791207533,12.44,146.44,146.36,5.4679]
[1740791207733,1.8781,146.43,146.36,5.4679]
[1740791207930,1.8781,146.43,146.38,5.4672]
[1740791208234,1.8837,146.42,146.34,12.44]
[1740791208627,0.05158917,146.39,146.38,5.4673]
[1740791213034,0.05158917,146.39,146.37,0.04991248]
[1740791213636,0.05158917,146.39,146.37,5.51731248]
[1740791214237,0.05158917,146.39,146.38,5.4673]
[1740791215133,0.05158917,146.39,146.37,0.04991248]
[1740791215731,0.05158917,146.39,146.38,5.4673]
[1740791216745,0.05158917,146.39,146.37,0.04991248]
[1740791216937,0.05158917,146.39,146.37,5.51741248]
[1740791217640,0.05158917,146.39,146.38,5.4673]
[1740791218342,0.05158917,146.39,146.38,21.10213625]
[1740791219242,0.05158917,146.39,146.37,0.04991248]
[1740791221245,0.05158917,146.39,146.37,15.68474873]
[1740791221443,0.05158917,146.39,146.37,0.04991248]
[1740791222139,0.05158917,146.39,146.37,15.68474873]
[1740791222334,0.05158917,146.39,146.37,0.04991248]
[1740791223034,0.05158917,146.39,146.37,15.68474873]
[1740791223342,0.05158917,146.39,146.37,0.04991248]
[1740791223544,5.4673,146.38,146.37,0.04991248]
[1740791225445,0.05158917,146.39,146.33,12.44]
[1740791225747,0.05158917,146.39,146.34,15.60790797]
[1740791225945,0.05158917,146.39,146.35,15.60790797]
[1740791226241,0.05158917,146.39,146.33,12.44]
[1740791226443,0.05158917,146.39,146.34,15.6145978]
[1740791226644,0.05158917,146.39,146.35,0.0479923]
[1740791226850,25.1466,146.42,146.35,0.0479923]
[1740791227149,5.468,146.36,146.35,0.0479923]
[1740791227940,0.0460551,146.38,146.35,15.66688674]
[1740791228141,0.0460551,146.38,146.36,15.61889444]
[1740791228342,0.0460551,146.38,146.35,0.0479923]
[1740791228643,5.468,146.37,146.36,15.62503236]
[1740791229250,5.468,146.36,146.35,0.0479923]
[1740791230150,5.4699,146.31,146.3,16.78824857]
[1740791230343,204.215,146.42,146.29,16.78824857]
[1740791230344,1.8058,146.37,146.29,16.78824857]
[1740791230539,1.7877,146.36,146.29,16.78824857]
[1740791231150,5.4697,146.32,146.28,16.78824857]
[1740791231353,5.4697,146.32,146.31,0.04870033]
[1740791232553,5.4691,146.33,146.31,0.04870033]
[1740791233549,0.04592471,146.34,146.31,0.04870033]
[1740791233755,5.51492471,146.34,146.31,0.04870033]
[1740791234155,5.4691,146.33,146.31,0.04870033]
[1740791236149,5.51482471,146.34,146.31,0.04870033]
[1740791239062,5.4692,146.33,146.31,0.04870033]
[1740791239251,5.4692,146.33,146.32,15.56742096]
[1740791244266,0.04592471,146.34,146.32,15.56742096]
[1740791244467,0.04592471,146.34,146.33,15.56742096]
[1740791245869,5.4677,146.37,146.33,15.56742096]
[1740791246167,5.4677,146.37,146.34,15.56742096]
[1740791246362,5.4677,146.37,146.35,15.56742096]
[1740791246561,5.4677,146.37,146.36,15.56742096]
[1740791250071,5.51793497,146.38,146.36,15.56742096]
[1740791250375,5.51793497,146.38,146.37,15.56742096]
[1740791251578,0.05053497,146.38,146.36,16.78824857]
[1740791251870,0.05053497,146.38,146.35,0.04694656]
[1740791252062,0.05053497,146.38,146.31,16.78824857]
[1740791252267,5.4695,146.32,146.31,16.78824857]
[1740791253373,0.04415544,146.33,146.3,0.04580203]
[1740791253578,5.4699,146.31,146.3,0.04580203]
[1740791255375,5.4697,146.32,146.3,0.04580203]
[1740791255571,5.4697,146.32,146.3,16.88579189]
[1740791256671,5.4697,146.32,146.3,0.04580203]
[1740791256861,0.04415544,146.33,146.27,16.83998986]
[1740791257066,5.471,146.28,146.27,16.83998986]
[1740791257267,202.44,146.32,146.2,11.21960273]
[1740791257472,202.44,146.32,146.21,16.84499443]
[1740791257874,202.44,146.32,146.22,16.84499443]
[1740791258175,0.0449011,146.28,146.22,16.84499443]
[1740791258374,5.4716,146.27,146.23,16.84499443]
[1740791258570,0.0449011,146.28,146.23,16.84499443]
[1740791258875,0.0449011,146.28,146.24,16.84499443]
[1740791259265,0.0449011,146.28,146.21,16.84499443]
[1740791259461,5.4721,146.26,146.21,16.84499443]
[1740791259667,202.44,146.32,146.21,16.84499443]
[1740791259878,0.04869981,146.25,146.21,16.84499443]
[1740791260177,0.04907574,146.24,146.22,22.31799443]
[1740791260372,5.4708,146.29,146.22,22.3696865]
[1740791260677,5.4708,146.29,146.23,16.84499443]
[1740791261076,5.4708,146.29,146.24,16.84499443]
[1740791261581,0.050365,146.28,146.25,15.01551583]
[1740791261772,5.521365,146.28,146.26,14.96848911]
[1740791261977,0.050365,146.28,146.25,0.04702672]
[1740791262373,5.4717,146.26,146.25,0.04702672]
[1740791263781,3.651,146.27,146.22,16.84499443]
[1740791263969,16.091,146.27,146.22,16.84499443]
[1740791264174,5.4729,146.23,146.22,16.84499443]
[1740791264375,16.091,146.27,146.2,14.97099505]
[1740791264573,16.091,146.27,146.19,16.84499443]
[1740791264780,0.04835457,146.24,146.2,14.96433573]
[1740791264980,0.04835457,146.24,146.16,16.84499443]
[1740791265183,16.091,146.27,146.17,14.96496416]
[1740791265484,5.4742,146.2,146.18,14.96496416]
[1740791265787,5.4742,146.2,146.19,14.96496416]
[1740791265973,5.52422268,146.2,146.18,14.96496416]
[1740791266174,5.52422268,146.2,146.19,14.96496416]
[1740791266369,0.05002268,146.2,146.17,31.80995859]
[1740791266676,0.05002268,146.2,146.19,5.4744]
[1740791266877,0.05002268,146.2,146.19,20.43936416]
[1740791268482,3.651,146.27,146.21,5.4735]
[1740791268683,3.651,146.27,146.22,14.96496416]
[1740791268879,5.4721,146.25,146.22,14.96496416]
[1740791269271,3.651,146.27,146.2,16.84499443]
[1740791269578,3.651,146.27,146.21,14.94797037]
[1740791269785,0.04490331,146.25,146.22,14.99146114]
[1740791269978,0.04490331,146.25,146.23,14.94797037]
[1740791270377,0.04490331,146.25,146.23,20.42067037]
[1740791270574,0.04490331,146.25,146.23,14.94764167]
[1740791270774,0.04490331,146.25,146.22,0.04349077]
[1740791270979,0.04490331,146.25,146.23,20.4196915]
[1740791271180,0.04490331,146.25,146.22,0.04349077]
[1740791271382,0.04490331,146.25,146.23,14.94707418]
[1740791271576,0.04490331,146.25,146.24,20.41957418]
[1740791272286,16.2491,146.33,146.24,14.94707418]
[1740791272489,16.2491,146.33,146.25,14.94707418]
[1740791272787,16.2491,146.33,146.26,14.94707418]
[1740791272984,5.4705,146.3,146.27,14.94707418]
[1740791273186,5.4705,146.3,146.24,29.28499443]
[1740791273386,5.4705,146.3,146.25,14.94620364]
[1740791273681,0.04524656,146.28,146.26,14.99847265]
[1740791273876,0.04524656,146.28,146.27,14.94620364]
[1740791274381,0.04524656,146.28,146.27,20.41740364]
[1740791275687,0.04524656,146.28,146.27,37.26239807]
[1740791276285,20.54,146.43,146.27,31.79119807]
[1740791276481,17.7495,146.39,146.28,14.94620364]
[1740791276685,17.7495,146.39,146.29,27.38620364]
[1740791276986,5.4687,146.35,146.31,5.4696]
[1740791277182,17.7495,146.39,146.29,29.28499443]
[1740791277383,5.4699,146.31,146.3,16.84499443]
[1740791277781,190.73173376,146.38,146.3,14.95016597]
[1740791278086,0.73173376,146.38,146.31,14.94869042]
[1740791278281,0.04768178,146.35,146.33,0.0507252]
[1740791278483,0.04768178,146.35,146.31,14.94806433]
[1740791278683,5.469,146.34,146.33,0.04514317]
[1740791284286,5.469,146.34,146.33,4.317e-05]
[1740791284492,21.329,146.34,146.33,4.317e-05]
[1740791287682,41.869,146.34,146.33,4.317e-05]
[1740791287881,21.329,146.34,146.33,4.317e-05]
[1740791288081,15.86,146.34,146.23,16.84499443]
[1740791288285,204.5144,146.33,146.2,16.84499443]
[1740791288485,206.3556,146.33,146.21,14.95307219]
[1740791288685,206.3556,146.33,146.22,14.95307219]
[1740791288895,5.4731,146.23,146.21,16.84499443]
[1740791289092,5.4731,146.23,146.22,14.95415807]
[1740791289291,5.52170314,146.23,146.22,14.95415807]
[1740791290391,0.04860314,146.23,146.22,14.95415807]
[1740791290593,195.4171,146.33,146.22,14.95415807]
[1740791290795,5.4171,146.33,146.23,16.84055807]
[1740791290985,5.4171,146.33,146.24,27.39415807]
[1740791291294,5.4171,146.33,146.25,14.95415807]
[1740791291490,5.4699,146.31,146.26,20.42565807]
[1740791291698,0.04817036,146.3,146.28,0.04360283]
[1740791291996,0.04817036,146.3,146.29,14.95415807]
[1740791292492,0.04817036,146.3,146.29,31.7991525]
[1740791292692,0.04817036,146.3,146.29,37.2697525]
[1740791293093,0.04817036,146.3,146.29,31.7991525]
[1740791294794,0.04817036,146.3,146.29,37.2697525]
[1740791295796,0.04817036,146.3,146.29,31.7991525]